Workbook

Sheet "простые"
A1: Ставка | B1: 16.90% | C1: ЧБП= | D1: 12 | E1: ПСК= | F1: =H1*D1 -> 16.895% | G1: i= | H1: 0.0140795521
A2: Аннуитет | B2: =ROUND(G4*B1/12/(1-(1+B1/12)^-60),2) -> 11401.42 | E2: ek= | F2: 0 | G2: Σ= | H2: =SUM(H4:H64) -> 0.00
A3: Месяц, qk | B3: Дата | C3: Дата в годах | D3: Денежный поток | E3: Погашение процентов | F3: Погашение основного долга | G3: Остаток основного долга | H3: Дисконтированный денежный поток
A4: 0 | B4: 2020-12-09 | C4: =YEAR(B4)-2000+(B4-DATE(YEAR(B4),1,0))/(DATE(YEAR(B4)+1,1,1)-DATE(YEAR(B4),1,1)) -> 20.93989071 | D4: =-G4 -> -459756.10 | G4: 459756.10 | H4: =D4/(1+$H$1)^A4 -> -459756.1
A5: 1 | B5: =EDATE(B4,1) -> 2021-01-09 | C5: =YEAR(B5)-2000+(B5-DATE(YEAR(B5),1,0))/(DATE(YEAR(B5)+1,1,1)-DATE(YEAR(B5),1,1)) -> 21.02465753 | D5: =$B$2 -> 11401.42 | E5: =ROUND(G4*$B$1*(C5-C4),2) -> 6586.28 | F5: =ROUND(D5-E5,2) -> 4815.14 | G5: =ROUND(G4-F5,2) -> 454940.96 | H5: =D5/(1+$H$1)^A5 -> 11243.12188
A6: 2 | B6: =EDATE(B5,1) -> 2021-02-09 | C6: 21.10958904 | D6: =$B$2 -> 11401.42 | E6: =ROUND(G5*$B$1*(C6-C5),2) -> 6529.96 | F6: =ROUND(D6-E6,2) -> 4871.46 | G6: =ROUND(G5-F6,2) -> 450069.50 | H6: =D6/(1+$H$1)^A6 -> 11087.02158
A7: 3 | B7: =EDATE(B6,1) -> 2021-03-09 | C7: 21.18630137 | D7: 11401.42 | E7: =ROUND(G6*$B$1*(C7-C6),2) -> 5834.87 | F7: 5566.55 | G7: =ROUND(G6-F7,2) -> 444502.95 | H7: =D7/(1+$H$1)^A7 -> 10933.08859
A8: 4 | B8: =EDATE(B7,1) -> 2021-04-09 | C8: 21.27123288 | D8: =$B$2 -> 11401.42 | E8: =ROUND(G7*$B$1*(C8-C7),2) -> 6380.14 | F8: 5021.28 | G8: =ROUND(G7-F8,2) -> 439481.67 | H8: =D8/(1+$H$1)^A8 -> 10781.29282
A9: 5 | B9: =EDATE(B8,1) -> 2021-05-09 | C9: 21.35342466 | D9: =$B$2 -> 11401.42 | E9: =ROUND(G8*$B$1*(C9-C8),2) -> 6104.58 | F9: 5296.84 | G9: =ROUND(G8-F9,2) -> 434184.83 | H9: =D9/(1+$H$1)^A9 -> 10631.60459
A10: 6 | B10: 2021-06-09 | C10: 21.43835616 | D10: 11401.42 | E10: =ROUND(G9*$B$1*(C10-C9),2) -> 6232.04 | F10: 5169.38 | G10: =ROUND(G9-F10,2) -> 429015.45 | H10: =D10/(1+$H$1)^A10 -> 10483.99464
A11: 7 | B11: 2021-07-09 | C11: 21.52054795 | D11: 11401.42 | E11: =ROUND(G10*$B$1*(C11-C10),2) -> 5959.20 | F11: 5442.22 | G11: =ROUND(G10-F11,2) -> 423573.23 | H11: =D11/(1+$H$1)^A11 -> 10338.43412
A12: 8 | B12: 2021-08-09 | C12: 21.60547945 | D12: 11401.42 | E12: =ROUND(G11*$B$1*(C12-C11),2) -> 6079.73 | F12: 5321.69 | G12: =ROUND(G11-F12,2) -> 418251.54 | H12: =D12/(1+$H$1)^A12 -> 10194.89457
A13: 9 | B13: 2021-09-09 | C13: 21.69041096 | D13: 11401.42 | E13: =ROUND(G12*$B$1*(C13-C12),2) -> 6003.34 | F13: 5398.08 | G13: =ROUND(G12-F13,2) -> 412853.46 | H13: =D13/(1+$H$1)^A13 -> 10053.34793
A14: 10 | B14: 2021-10-09 | C14: 21.77260274 | D14: 11401.42 | E14: =ROUND(G13*$B$1*(C14-C13),2) -> 5734.70 | F14: 5666.72 | G14: =ROUND(G13-F14,2) -> 407186.74 | H14: =D14/(1+$H$1)^A14 -> 9913.766538
A15: 11 | B15: 2021-11-09 | C15: 21.85753425 | D15: 11401.42 | E15: =ROUND(G14*$B$1*(C15-C14),2) -> 5844.52 | F15: 5556.90 | G15: =ROUND(G14-F15,2) -> 401629.84 | H15: =D15/(1+$H$1)^A15 -> 9776.123104
A16: 12 | B16: 2021-12-09 | C16: 21.93972603 | D16: 11401.42 | E16: =ROUND(G15*$B$1*(C16-C15),2) -> 5578.80 | F16: 5822.62 | G16: =ROUND(G15-F16,2) -> 395807.22 | H16: =D16/(1+$H$1)^A16 -> 9640.39072
A17: 13 | B17: 2022-01-09 | C17: 22.02465753 | D17: 11401.42 | E17: =ROUND(G16*$B$1*(C17-C16),2) -> 5681.19 | F17: 5720.23 | G17: =ROUND(G16-F17,2) -> 390086.99 | H17: =D17/(1+$H$1)^A17 -> 9506.542855
A18: 14 | B18: 2022-02-09 | C18: 22.10958904 | D18: 11401.42 | E18: =ROUND(G17*$B$1*(C18-C17),2) -> 5599.08 | F18: 5802.34 | G18: =ROUND(G17-F18,2) -> 384284.65 | H18: =D18/(1+$H$1)^A18 -> 9374.553343
A19: 15 | B19: 2022-03-09 | C19: 22.18630137 | D19: 11401.42 | E19: =ROUND(G18*$B$1*(C19-C18),2) -> 4982.01 | F19: 6419.41 | G19: =ROUND(G18-F19,2) -> 377865.24 | H19: =D19/(1+$H$1)^A19 -> 9244.396382
A20: 16 | B20: 2022-04-09 | C20: 22.27123288 | D20: 11401.42 | E20: =ROUND(G19*$B$1*(C20-C19),2) -> 5423.66 | F20: 5977.76 | G20: =ROUND(G19-F20,2) -> 371887.48 | H20: =D20/(1+$H$1)^A20 -> 9116.04653
A21: 17 | B21: 2022-05-09 | C21: 22.35342466 | D21: 11401.42 | E21: =ROUND(G20*$B$1*(C21-C20),2) -> 5165.67 | F21: 6235.75 | G21: =ROUND(G20-F21,2) -> 365651.73 | H21: =D21/(1+$H$1)^A21 -> 8989.478696
A22: 18 | B22: 2022-06-09 | C22: 22.43835616 | D22: 11401.42 | E22: =ROUND(G21*$B$1*(C22-C21),2) -> 5248.35 | F22: 6153.07 | G22: =ROUND(G21-F22,2) -> 359498.66 | H22: =D22/(1+$H$1)^A22 -> 8864.668139
A23: 19 | B23: 2022-07-09 | C23: 22.52054795 | D23: 11401.42 | E23: =ROUND(G22*$B$1*(C23-C22),2) -> 4993.58 | F23: 6407.84 | G23: =ROUND(G22-F23,2) -> 353090.82 | H23: =D23/(1+$H$1)^A23 -> 8741.590461
A24: 20 | B24: 2022-08-09 | C24: 22.60547945 | D24: 11401.42 | E24: =ROUND(G23*$B$1*(C24-C23),2) -> 5068.06 | F24: 6333.36 | G24: =ROUND(G23-F24,2) -> 346757.46 | H24: =D24/(1+$H$1)^A24 -> 8620.221602
A25: 21 | B25: 2022-09-09 | C25: 22.69041096 | D25: 11401.42 | E25: =ROUND(G24*$B$1*(C25-C24),2) -> 4977.16 | F25: 6424.26 | G25: =ROUND(G24-F25,2) -> 340333.20 | H25: =D25/(1+$H$1)^A25 -> 8500.537837
A26: 22 | B26: 2022-10-09 | C26: 22.77260274 | D26: 11401.42 | E26: =ROUND(G25*$B$1*(C26-C25),2) -> 4727.37 | F26: 6674.05 | G26: =ROUND(G25-F26,2) -> 333659.15 | H26: =D26/(1+$H$1)^A26 -> 8382.515769
A27: 23 | B27: 2022-11-09 | C27: 22.85753425 | D27: 11401.42 | E27: =ROUND(G26*$B$1*(C27-C26),2) -> 4789.15 | F27: 6612.27 | G27: =ROUND(G26-F27,2) -> 327046.88 | H27: =D27/(1+$H$1)^A27 -> 8266.132328
A28: 24 | B28: 2022-12-09 | C28: 22.93972603 | D28: 11401.42 | E28: =ROUND(G27*$B$1*(C28-C27),2) -> 4542.82 | F28: 6858.60 | G28: =ROUND(G27-F28,2) -> 320188.28 | H28: =D28/(1+$H$1)^A28 -> 8151.364763
A29: 25 | B29: 2023-01-09 | C29: 23.02465753 | D29: 11401.42 | E29: =ROUND(G28*$B$1*(C29-C28),2) -> 4595.80 | F29: 6805.62 | G29: =ROUND(G28-F29,2) -> 313382.66 | H29: =D29/(1+$H$1)^A29 -> 8038.190639
A30: 26 | B30: 2023-02-09 | C30: 23.10958904 | D30: 11401.42 | E30: =ROUND(G29*$B$1*(C30-C29),2) -> 4498.11 | F30: 6903.31 | G30: =ROUND(G29-F30,2) -> 306479.35 | H30: =D30/(1+$H$1)^A30 -> 7926.587833
A31: 27 | B31: 2023-03-09 | C31: 23.18630137 | D31: 11401.42 | E31: =ROUND(G30*$B$1*(C31-C30),2) -> 3973.32 | F31: 7428.10 | G31: =ROUND(G30-F31,2) -> 299051.25 | H31: =D31/(1+$H$1)^A31 -> 7816.534528
A32: 28 | B32: 2023-04-09 | C32: 23.27123288 | D32: 11401.42 | E32: =ROUND(G31*$B$1*(C32-C31),2) -> 4292.41 | F32: 7109.01 | G32: =ROUND(G31-F32,2) -> 291942.24 | H32: =D32/(1+$H$1)^A32 -> 7708.009211
A33: 29 | B33: 2023-05-09 | C33: 23.35342466 | D33: 11401.42 | E33: =ROUND(G32*$B$1*(C33-C32),2) -> 4055.20 | F33: 7346.22 | G33: =ROUND(G32-F33,2) -> 284596.02 | H33: =D33/(1+$H$1)^A33 -> 7600.990667
A34: 30 | B34: 2023-06-09 | C34: 23.43835616 | D34: 11401.42 | E34: =ROUND(G33*$B$1*(C34-C33),2) -> 4084.93 | F34: 7316.49 | G34: =ROUND(G33-F34,2) -> 277279.53 | H34: =D34/(1+$H$1)^A34 -> 7495.457975
A35: 31 | B35: 2023-07-09 | C35: 23.52054795 | D35: 11401.42 | E35: =ROUND(G34*$B$1*(C35-C34),2) -> 3851.53 | F35: 7549.89 | G35: =ROUND(G34-F35,2) -> 269729.64 | H35: =D35/(1+$H$1)^A35 -> 7391.390508
A36: 32 | B36: 2023-08-09 | C36: 23.60547945 | D36: 11401.42 | E36: =ROUND(G35*$B$1*(C36-C35),2) -> 3871.54 | F36: 7529.88 | G36: =ROUND(G35-F36,2) -> 262199.76 | H36: =D36/(1+$H$1)^A36 -> 7288.76792
A37: 33 | B37: 2023-09-09 | C37: 23.69041096 | D37: 11401.42 | E37: =ROUND(G36*$B$1*(C37-C36),2) -> 3763.46 | F37: 7637.96 | G37: =ROUND(G36-F37,2) -> 254561.80 | H37: =D37/(1+$H$1)^A37 -> 7187.570152
A38: 34 | B38: 2023-10-09 | C38: 23.77260274 | D38: 11401.42 | E38: =ROUND(G37*$B$1*(C38-C37),2) -> 3535.97 | F38: 7865.45 | G38: =ROUND(G37-F38,2) -> 246696.35 | H38: =D38/(1+$H$1)^A38 -> 7087.77742
A39: 35 | B39: 2023-11-09 | C39: 23.85753425 | D39: 11401.42 | E39: =ROUND(G38*$B$1*(C39-C38),2) -> 3540.94 | F39: 7860.48 | G39: =ROUND(G38-F39,2) -> 238835.87 | H39: =D39/(1+$H$1)^A39 -> 6989.370218
A40: 36 | B40: 2023-12-09 | C40: 23.93972603 | D40: 11401.42 | E40: =ROUND(G39*$B$1*(C40-C39),2) -> 3317.53 | F40: 8083.89 | G40: =ROUND(G39-F40,2) -> 230751.98 | H40: =D40/(1+$H$1)^A40 -> 6892.329308
A41: 37 | B41: 2024-01-09 | C41: 24.02459016 | D41: 11401.42 | E41: =ROUND(G40*$B$1*(C41-C40),2) -> 3309.45 | F41: 8091.97 | G41: =ROUND(G40-F41,2) -> 222660.01 | H41: =D41/(1+$H$1)^A41 -> 6796.635722
A42: 38 | B42: 2024-02-09 | C42: 24.10928962 | D42: 11401.42 | E42: =ROUND(G41*$B$1*(C42-C41),2) -> 3187.20 | F42: 8214.22 | G42: =ROUND(G41-F42,2) -> 214445.79 | H42: =D42/(1+$H$1)^A42 -> 6702.270751
A43: 39 | B43: 2024-03-09 | C43: 24.18852459 | D43: 11401.42 | E43: =ROUND(G42*$B$1*(C43-C42),2) -> 2871.58 | F43: 8529.84 | G43: =ROUND(G42-F43,2) -> 205915.95 | H43: =D43/(1+$H$1)^A43 -> 6609.215951
A44: 40 | B44: 2024-04-09 | C44: 24.27322404 | D44: 11401.42 | E44: =ROUND(G43*$B$1*(C44-C43),2) -> 2947.52 | F44: 8453.90 | G44: =ROUND(G43-F44,2) -> 197462.05 | H44: =D44/(1+$H$1)^A44 -> 6517.45313
A45: 41 | B45: 2024-05-09 | C45: 24.35519126 | D45: 11401.42 | E45: =ROUND(G44*$B$1*(C45-C44),2) -> 2735.33 | F45: 8666.09 | G45: =ROUND(G44-F45,2) -> 188795.96 | H45: =D45/(1+$H$1)^A45 -> 6426.964351
A46: 42 | B46: 2024-06-09 | C46: 24.43989071 | D46: 11401.42 | E46: =ROUND(G45*$B$1*(C46-C45),2) -> 2702.46 | F46: 8698.96 | G46: =ROUND(G45-F46,2) -> 180097.00 | H46: =D46/(1+$H$1)^A46 -> 6337.731924
A47: 43 | B47: 2024-07-09 | C47: 24.52185792 | D47: 11401.42 | E47: =ROUND(G46*$B$1*(C47-C46),2) -> 2494.79 | F47: 8906.63 | G47: =ROUND(G46-F47,2) -> 171190.37 | H47: =D47/(1+$H$1)^A47 -> 6249.738406
A48: 44 | B48: 2024-08-09 | C48: 24.60655738 | D48: 11401.42 | E48: =ROUND(G47*$B$1*(C48-C47),2) -> 2450.45 | F48: 8950.97 | G48: =ROUND(G47-F48,2) -> 162239.40 | H48: =D48/(1+$H$1)^A48 -> 6162.966597
A49: 45 | B49: 2024-09-09 | C49: 24.69125683 | D49: 11401.42 | E49: =ROUND(G48*$B$1*(C49-C48),2) -> 2322.33 | F49: 9079.09 | G49: =ROUND(G48-F49,2) -> 153160.31 | H49: =D49/(1+$H$1)^A49 -> 6077.399534
A50: 46 | B50: 2024-10-09 | C50: 24.77322404 | D50: 11401.42 | E50: =ROUND(G49*$B$1*(C50-C49),2) -> 2121.65 | F50: 9279.77 | G50: =ROUND(G49-F50,2) -> 143880.54 | H50: =D50/(1+$H$1)^A50 -> 5993.020489
A51: 47 | B51: 2024-11-09 | C51: 24.8579235 | D51: 11401.42 | E51: =ROUND(G50*$B$1*(C51-C50),2) -> 2059.54 | F51: 9341.88 | G51: =ROUND(G50-F51,2) -> 134538.66 | H51: =D51/(1+$H$1)^A51 -> 5909.81297
A52: 48 | B52: 2024-12-09 | C52: 24.93989071 | D52: 11401.42 | E52: =ROUND(G51*$B$1*(C52-C51),2) -> 1863.69 | F52: 9537.73 | G52: =ROUND(G51-F52,2) -> 125000.93 | H52: =D52/(1+$H$1)^A52 -> 5827.760709
A53: 49 | B53: 2025-01-09 | C53: 25.02465753 | D53: 11401.42 | E53: =ROUND(G52*$B$1*(C53-C52),2) -> 1790.71 | F53: 9610.71 | G53: =ROUND(G52-F53,2) -> 115390.22 | H53: =D53/(1+$H$1)^A53 -> 5746.847668
A54: 50 | B54: 2025-02-09 | C54: 25.10958904 | D54: 11401.42 | E54: =ROUND(G53*$B$1*(C54-C53),2) -> 1656.24 | F54: 9745.18 | G54: =ROUND(G53-F54,2) -> 105645.04 | H54: =D54/(1+$H$1)^A54 -> 5667.058029
A55: 51 | B55: 2025-03-09 | C55: 25.18630137 | D55: 11401.42 | E55: =ROUND(G54*$B$1*(C55-C54),2) -> 1369.62 | F55: 10031.80 | G55: =ROUND(G54-F55,2) -> 95613.24 | H55: =D55/(1+$H$1)^A55 -> 5588.376195
A56: 52 | B56: 2025-04-09 | C56: 25.27123288 | D56: 11401.42 | E56: =ROUND(G55*$B$1*(C56-C55),2) -> 1372.38 | F56: 10029.04 | G56: =ROUND(G55-F56,2) -> 85584.20 | H56: =D56/(1+$H$1)^A56 -> 5510.786786
A57: 53 | B57: 2025-05-09 | C57: 25.35342466 | D57: 11401.42 | E57: =ROUND(G56*$B$1*(C57-C56),2) -> 1188.80 | F57: 10212.62 | G57: =ROUND(G56-F57,2) -> 75371.58 | H57: =D57/(1+$H$1)^A57 -> 5434.274633
A58: 54 | B58: 2025-06-09 | C58: 25.43835616 | D58: 11401.42 | E58: =ROUND(G57*$B$1*(C58-C57),2) -> 1081.84 | F58: 10319.58 | G58: =ROUND(G57-F58,2) -> 65052.00 | H58: =D58/(1+$H$1)^A58 -> 5358.82478
A59: 55 | B59: 2025-07-09 | C59: 25.52054795 | D59: 11401.42 | E59: =ROUND(G58*$B$1*(C59-C58),2) -> 903.60 | F59: 10497.82 | G59: =ROUND(G58-F59,2) -> 54554.18 | H59: =D59/(1+$H$1)^A59 -> 5284.422479
A60: 56 | B60: 2025-08-09 | C60: 25.60547945 | D60: 11401.42 | E60: =ROUND(G59*$B$1*(C60-C59),2) -> 783.04 | F60: 10618.38 | G60: =ROUND(G59-F60,2) -> 43935.80 | H60: =D60/(1+$H$1)^A60 -> 5211.053184
A61: 57 | B61: 2025-09-09 | C61: 25.69041096 | D61: 11401.42 | E61: =ROUND(G60*$B$1*(C61-C60),2) -> 630.63 | F61: 10770.79 | G61: =ROUND(G60-F61,2) -> 33165.01 | H61: =D61/(1+$H$1)^A61 -> 5138.702554
A62: 58 | B62: 2025-10-09 | C62: 25.77260274 | D62: 11401.42 | E62: =ROUND(G61*$B$1*(C62-C61),2) -> 460.68 | F62: 10940.74 | G62: =ROUND(G61-F62,2) -> 22224.27 | H62: =D62/(1+$H$1)^A62 -> 5067.356444
A63: 59 | B63: 2025-11-09 | C63: 25.85753425 | D63: 11401.42 | E63: =ROUND(G62*$B$1*(C63-C62),2) -> 318.99 | F63: 11082.43 | G63: =ROUND(G62-F63,2) -> 11141.84 | H63: =D63/(1+$H$1)^A63 -> 4997.00091
A64: 60 | B64: 2025-12-09 | C64: 25.93972603 | D64: 11296.60 | E64: =ROUND(G63*$B$1*(C64-C63),2) -> 154.76 | F64: 11141.84 | G64: =ROUND(G63-F64,2) -> 0.00 | H64: =D64/(1+$H$1)^A64 -> 4882.31965
B66: ПСК по 2008-У | D66: =XIRR(D4:D64,B4:B64) -> 18.27%
B67: ПСК по 6 ст. 353-ФЗ | D67: =IRR(D4:D64,0)*12 -> 16.895%
B68: Точное значение ПСК | D68: =ПСК(D4:D64,C4:C64) -> 0.1689999707 | E68: По научной работе Романенко Р.В. "Формула ПСК"
